bitfinex/quotes_SOLUSD_20250604
["timestamp","ask_amount","ask_price","bid_price","bid_amount"]
[1749073896673,12.73208402,155.35,155.34,68.78964886]
[1749073906583,3.70106921,155.39,155.34,68.78964886]
[1749073906906,181.6968,155.4,155.34,68.78964886]
[1749073907105,12.73208402,155.35,155.34,68.78964886]
[1749073907487,3.70105787,155.39,155.34,68.78964886]
[1749073907686,12.73208402,155.35,155.34,68.78964886]
[1749073924419,181.6968,155.4,155.34,68.78964886]
[1749073924646,3.70068283,155.39,155.35,18.64964886]
[1749073924934,12.73208402,155.36,155.35,18.64964886]
[1749073925144,12.73208402,155.36,155.35,58.30964886]
[1749073926129,12.73208402,155.36,155.35,61.5362354]
[1749073931261,12.73208402,155.36,155.35,109.7909574]
[1749073932746,26.0,155.37,155.35,109.7909574]
[1749073932952,12.73208402,155.36,155.35,109.7909574]
[1749073936032,12.73208402,155.36,155.35,109.93311897]
[1749073938550,26.0,155.39,155.35,109.93311897]
[1749073938753,12.73208402,155.36,155.35,109.93311897]
[1749073939627,26.0,155.39,155.35,109.93311897]
[1749073939836,12.73208402,155.36,155.35,109.93311897]
[1749073940641,1.5068,155.4,155.36,0.14216157]
[1749073940849,12.73208402,155.37,155.36,0.14216157]
[1749073948968,1.5068,155.4,155.36,0.14216157]
[1749073949187,12.73208402,155.37,155.36,0.14216157]
[1749073949861,26.0,155.44,155.36,0.56864628]
[1749073950058,12.73208402,155.38,155.36,8.66320431]
[1749073952961,12.73208402,155.39,155.36,8.66320431]
[1749073959570,12.73208402,155.38,155.36,8.66320431]
[1749073960848,12.73208402,155.39,155.36,8.66320431]
[1749073962061,12.73208402,155.38,155.36,8.66320431]
[1749073962463,12.73208402,155.38,155.37,37.28432314]
[1749073965275,12.73208402,155.38,155.37,76.88432314]
[1749073967284,12.73208402,155.38,155.37,87.24432314]
[1749073969807,1.5599,155.42,155.38,18.79181043]
[1749073969966,12.73208402,155.39,155.38,18.79181043]
[1749073973489,1.5599,155.42,155.38,18.79181043]
[1749073973791,12.73208402,155.39,155.38,18.79181043]
[1749073975494,12.73208402,155.39,155.38,58.39181043]
[1749073976072,1.5599,155.42,155.38,58.81829514]
[1749073976392,12.73208402,155.4,155.39,0.28432314]
[1749073980721,12.73208402,155.4,155.39,58.24964886]
[1749073983676,12.73208402,155.4,155.39,18.64964886]
[1749073983998,12.73208402,155.4,155.39,68.58964886]
[1749073985080,12.73208402,155.4,155.39,10.36]
[1749073985478,12.73208402,155.4,155.39,49.94]
[1749073986198,26.0,155.38,155.35,48.254722]
[1749073986376,1.5919,155.37,155.36,39.58]
[1749073986576,65.2523201,155.37,155.36,10.36]
[1749073986812,65.2523201,155.37,155.33,3.21453647]
[1749073987020,12.73208402,155.34,155.29,0.14216157]
[1749073987306,12.73208402,155.3,155.26,24.03701908]
[1749073987509,12.73208402,155.3,155.26,7.80421968]
[1749073988010,12.73208402,155.3,155.29,0.28432314]
[1749073988180,12.73208402,155.3,155.29,3.52869769]
[1749073988515,12.73208402,155.3,155.29,0.28432314]
[1749073991791,12.73208402,155.3,155.29,39.72216157]
[1749073992002,12.73208402,155.3,155.29,39.86432314]
[1749073992393,50.92833608,155.36,155.3,18.64964886]
[1749073992594,12.73208402,155.31,155.3,18.79181043]
[1749073994204,1.5919,155.37,155.3,29.13181043]
[1749073994388,12.73208402,155.31,155.3,29.13181043]
[1749073997083,50.92833608,155.36,155.3,29.13181043]
[1749073997285,12.73208402,155.31,155.3,29.13181043]
[1749073997511,12.73208402,155.31,155.3,49.94]
[1749074010552,12.73208402,155.31,155.3,49.92]
[1749074015336,1.5001,155.32,155.3,49.92]
[1749074015622,12.73208402,155.31,155.3,49.92]
[1749074016326,1.5001,155.32,155.3,49.92]
[1749074016533,12.73208402,155.31,155.3,49.92]
[1749074028537,1.5001,155.32,155.3,49.92]
[1749074028958,12.73208402,155.31,155.3,49.92]
[1749074030937,1.5001,155.32,155.3,68.71181043]
[1749074031231,12.73208402,155.32,155.3,68.71181043]
[1749074031458,26.0,155.36,155.31,18.933972]
[1749074031665,12.73208402,155.33,155.31,18.933972]
[1749074031837,12.73208402,155.34,155.31,18.933972]
[1749074033431,12.73208402,155.33,155.31,18.933972]
[1749074033837,26.0,155.36,155.31,18.933972]
[1749074034243,12.73208402,155.32,155.31,19.21829514]
[1749074037757,12.73208402,155.33,155.31,19.21829514]
[1749074038351,1.5074,155.37,155.31,19.21829514]
[1749074038542,12.73208402,155.33,155.31,19.21829514]
[1749074040944,12.73208402,155.33,155.32,37.30432314]
[1749074055480,12.73208402,155.33,155.32,47.62432314]
[1749074058560,12.73208402,155.33,155.32,47.48216157]
[1749074058766,12.73208402,155.33,155.32,47.34]
[1749074058983,12.73208402,155.33,155.32,86.9]
[1749074059274,14.32788402,155.33,155.32,86.9]
[1749074059955,14.32788402,155.33,155.32,47.34]
[1749074060283,14.32788402,155.33,155.32,49.86]
[1749074062966,14.32788402,155.33,155.32,10.32]
[1749074063168,14.32788402,155.33,155.32,49.86]
[1749074063479,14.32788402,155.33,155.32,49.88]
[1749074065591,14.32788402,155.33,155.32,10.32]
[1749074065894,1.5958,155.33,155.32,10.32]
[1749074066092,14.32788402,155.33,155.32,49.86]
[1749074069978,14.32788402,155.33,155.32,10.32]
[1749074070180,14.32788402,155.33,155.32,49.86]
[1749074071372,32.2868,155.36,155.32,68.50964886]
[1749074071685,12.73208402,155.33,155.32,68.50964886]
[1749074079097,12.73208402,155.33,155.32,49.86]
[1749074079312,12.73208402,155.33,155.32,68.50964886]
[1749074080501,12.73208402,155.33,155.32,49.86]
[1749074095216,12.73208402,155.33,155.32,10.32]
[1749074095517,12.73208402,155.33,155.32,49.84]
[1749074095887,12.73208402,155.33,155.32,10.32]
[1749074096116,12.73208402,155.33,155.32,49.84]
[1749074110429,6.2868,155.36,155.32,49.84]
[1749074110726,12.73208402,155.33,155.32,49.84]
[1749074113210,12.73208402,155.33,155.32,10.32]
[1749074113411,12.73208402,155.33,155.32,49.84]
[1749074119741,38.73208402,155.33,155.32,49.84]
[1749074127143,38.73208402,155.33,155.32,10.32]
[1749074127354,38.73208402,155.33,155.32,49.82]
[1749074141363,26.0,155.33,155.32,49.82]
[1749074141672,38.73208402,155.33,155.32,49.82]
[1749074144338,26.0,155.33,155.32,49.82]
[1749074144544,38.73208402,155.33,155.32,49.82]
[1749074160485,12.73208402,155.33,155.32,49.82]
[1749074161285,26.0,155.34,155.32,49.82]
[1749074161501,12.73208402,155.33,155.32,49.82]
[1749074163393,26.0,155.34,155.32,49.82]
[1749074163588,50.92833608,155.36,155.32,49.82]
[1749074163782,12.73208402,155.33,155.32,49.82]
[1749074166506,26.0,155.34,155.32,49.82]
[1749074166685,12.73208402,155.33,155.32,49.82]
[1749074175737,12.73208402,155.33,155.32,10.32]
[1749074176103,12.73208402,155.33,155.32,49.78]
[1749074183427,12.73208402,155.33,155.32,49.72]
[1749074183748,12.73208402,155.33,155.32,10.26]
[1749074183947,12.73208402,155.33,155.32,49.72]
[1749074187530,12.73208402,155.33,155.32,10.26]
[1749074187727,12.73208402,155.33,155.32,49.72]
[1749074191251,38.73208402,155.33,155.32,49.72]
[1749074191955,38.73208402,155.33,155.32,10.26]
[1749074192152,38.73208402,155.33,155.32,49.7]
[1749074194426,40.38958402,155.33,155.32,10.26]
[1749074194727,6.0654,155.32,155.24,18.64964886]
[1749074194933,12.73208402,155.25,155.24,0.14216157]
[1749074195133,12.73208402,155.25,155.22,18.64964886]
[1749074195349,12.73208402,155.23,155.22,18.64964886]
[1749074195550,12.73208402,155.23,155.22,18.79181043]
[1749074195758,12.73208402,155.23,155.22,58.23181043]
[1749074196041,12.73208402,155.23,155.22,61.43027616]
[1749074200361,12.73208402,155.23,155.2,7.2355734]
[1749074200539,12.73208402,155.21,155.15,18.79181043]
[1749074200736,12.73208402,155.18,155.17,18.79181043]
[1749074201441,12.73208402,155.18,155.17,61.45801611]
[1749074201861,12.73208402,155.18,155.17,21.87585454]
[1749074202162,12.73208402,155.18,155.14,7.2355734]
[1749074202372,50.92833608,155.2,155.15,58.08964886]
[1749074203262,50.92833608,155.2,155.16,39.44]
[1749074203471,12.73208402,155.17,155.15,18.64964886]
[1749074203638,12.73208402,155.16,155.11,0.14216157]
[1749074203844,12.73208402,155.13,155.12,18.79181043]
[1749074204057,12.73208402,155.13,155.12,28.90964886]
[1749074204249,12.73208402,155.13,155.12,68.34964886]
[1749074205266,12.73208402,155.13,155.12,68.36964886]
[1749074205664,12.73208402,155.13,155.12,10.26]
[1749074206564,12.73208402,155.13,155.12,49.72]
[1749074206762,12.73208402,155.13,155.12,10.26]
[1749074206964,12.73208402,155.13,155.12,49.72]
[1749074207853,63.6604201,155.13,155.12,10.26]
[1749074208053,65.1838201,155.13,155.12,49.72]
[1749074208258,65.1838201,155.13,155.1,37.04]
[1749074208570,12.73208402,155.11,155.05,3.24936957]
[1749074208883,50.92833608,155.12,155.06,39.46]
[1749074209042,50.92833608,155.12,155.07,39.46]
[1749074209242,50.92833608,155.12,155.02,44.79181043]
[1749074209460,0.14216157,155.11,155.03,39.46]
[1749074210055,12.73208402,155.04,155.03,58.10964886]
[1749074210265,12.73208402,155.04,155.01,7.2355734]
[1749074210462,12.73208402,155.03,155.02,39.46]
[1749074211182,19.94053235,155.03,155.01,7.2355734]
[1749074211350,19.94053235,155.03,155.02,39.46]
[1749074211669,0.14216157,155.09,155.01,7.2355734]
[1749074211873,19.94053235,155.02,155.01,7.2355734]
[1749074212075,19.94053235,155.02,155.01,39.46]
[1749074212943,19.94053235,155.02,154.98,44.933972]
[1749074212944,19.94053235,155.02,154.99,18.64964886]
[1749074213151,19.94053235,155.02,155.0,39.46]
[1749074213376,19.94053235,155.01,154.98,26.0]
[1749074213673,19.94053235,154.99,154.97,7.2355734]
[1749074213987,19.94053235,154.98,154.94,18.64964886]
[1749074214154,19.94053235,154.96,154.95,68.38964886]
[1749074214472,19.94053235,154.96,154.95,28.90964886]
[1749074214674,19.94053235,154.96,154.95,68.38964886]
[1749074215857,19.94053235,154.96,154.95,28.90964886]
[1749074216059,19.94053235,154.96,154.95,49.74]
[1749074221177,19.94053235,154.96,154.95,10.26]
[1749074221380,19.94053235,154.96,154.95,49.76]
[1749074222379,19.94053235,154.96,154.95,10.26]
[1749074222957,19.94053235,154.96,154.95,49.76]
[1749074223682,39.8810647,154.96,154.95,10.26]
[1749074224482,39.8810647,154.96,154.95,49.76]
[1749074226481,19.94053235,154.96,154.95,49.76]
[1749074227084,19.94053235,154.96,154.95,10.26]
[1749074227271,39.8810647,154.96,154.95,10.26]
[1749074227586,39.8810647,154.96,154.95,49.76]
[1749074232586,1.5787,154.97,154.95,49.76]
[1749074232886,19.94053235,154.96,154.95,49.76]
[1749074233087,27.6582,155.01,154.96,18.64964886]
[1749074233088,19.94053235,154.97,154.96,18.64964886]
[1749074240395,19.94053235,154.97,154.96,18.79181043]
[1749074242487,19.94053235,154.98,154.96,18.79181043]
[1749074242666,19.94053235,154.97,154.96,18.79181043]
[1749074243968,19.94053235,154.97,154.96,58.29181043]
[1749074244489,19.94053235,154.97,154.96,58.14964886]
[1749074244803,19.94053235,154.97,154.95,10.26]
[1749074245097,19.94053235,154.96,154.95,10.26]
[1749074245265,19.94053235,154.96,154.95,49.76]
[1749074247882,19.94053235,154.96,154.95,10.26]
[1749074248194,19.94053235,154.96,154.95,49.76]
[1749074248766,19.94053235,154.96,154.95,10.26]
[1749074248969,19.94053235,154.96,154.95,49.76]
[1749074260697,19.94053235,154.96,154.95,68.40964886]
[1749074261505,19.94053235,154.96,154.95,68.38964886]
[1749074267116,1.6582,155.01,154.95,68.38964886]
[1749074267300,12.77309134,154.96,154.95,68.38964886]
[1749074270316,1.6582,155.01,154.95,68.38964886]
[1749074270611,12.77309134,154.96,154.95,68.38964886]
[1749074272320,12.77309134,154.96,154.95,68.53181043]
[1749074280024,12.77309134,154.96,154.95,10.26]
[1749074280200,12.77309134,154.96,154.95,49.74]
[1749074281921,12.77309134,154.96,154.95,10.26]
[1749074281922,65.3906567,154.96,154.95,10.26]
[1749074282309,65.3906567,154.96,154.95,49.74]
[1749074283313,41.4635422,154.96,154.95,10.26]
[1749074283519,41.4635422,154.96,154.95,49.74]
[1749074283708,41.4635422,154.96,154.95,10.26]
[1749074283906,41.4635422,154.96,154.95,49.74]
[1749074287409,1.5252,154.96,154.95,49.74]
[1749074287815,41.4635422,154.96,154.95,49.74]
[1749074289820,41.60570377,154.96,154.89,3.28440558]
[1749074290142,21.63653267,154.96,154.9,39.48]
[1749074290302,21.63653267,154.96,154.91,39.48]
[1749074290507,21.63653267,154.96,154.87,0.14216157]
[1749074290703,21.63653267,154.96,154.88,39.48]
[1749074291010,21.63653267,154.96,154.88,42.74861981]
[1749074291416,19.9691711,154.89,154.88,61.39826867]
[1749074292948,19.9691711,154.89,154.88,39.48]
[1749074294143,19.9691711,154.89,154.88,49.72]
[1749074294507,19.9691711,154.89,154.88,10.24]
[1749074294845,39.9383422,154.89,154.88,10.24]
[1749074295012,39.9383422,154.89,154.88,49.72]
[1749074295443,39.9383422,154.89,154.84,37.12]
[1749074295625,19.9691711,154.85,154.84,47.36]
[1749074295823,21.5875711,154.85,154.84,86.84]
[1749074296239,21.5875711,154.85,154.76,26.0]
[1749074296240,21.72973267,154.85,154.76,26.0]
[1749074296422,26.0,154.82,154.77,39.48]
[1749074296616,19.9691711,154.78,154.74,26.0]
[1749074296940,26.0,154.83,154.76,18.64964886]
[1749074296941,19.9691711,154.77,154.76,18.64964886]
[1749074298124,19.9691711,154.77,154.76,18.79181043]
[1749074298533,19.9691711,154.78,154.76,18.79181043]
[1749074298830,19.9691711,154.78,154.77,0.14216157]
[1749074299856,19.9691711,154.78,154.77,39.62216157]
[1749074304147,19.9691711,154.78,154.77,49.86216157]
[1749074307438,1.6184,154.85,154.77,68.51181043]
[1749074307749,19.9691711,154.78,154.77,68.653972]
[1749074309040,19.9691711,154.79,154.77,68.653972]
[1749074309456,1.6184,154.85,154.77,68.93829514]
[1749074309647,1.6184,154.85,154.79,0.14216157]
[1749074309844,19.9691711,154.8,154.79,0.14216157]
[1749074317568,19.9691711,154.81,154.79,0.14216157]
[1749074317782,19.9691711,154.83,154.81,18.79181043]
[1749074317945,19.9691711,154.88,154.83,18.64964886]
[1749074317946,19.9691711,154.84,154.83,18.64964886]
[1749074318273,19.9691711,154.84,154.83,18.79181043]
[1749074320460,1.6242,154.93,154.88,0.28432314]
[1749074320664,19.9691711,154.91,154.9,18.64964886]
[1749074320865,19.9691711,154.92,154.9,18.64964886]
[1749074321350,19.9691711,154.92,154.9,21.83312921]
[1749074321854,1.6242,154.93,154.9,21.83312921]
[1749074321855,19.9691711,154.91,154.9,21.97529078]
[1749074322477,19.9691711,154.92,154.91,0.14216157]
[1749074323197,19.9691711,154.93,154.91,0.28432314]
[1749074327683,19.9691711,154.94,154.92,18.79181043]
[1749074327984,19.9691711,154.94,154.93,0.14216157]
[1749074329465,1.5112,154.97,154.93,0.14216157]
[1749074329674,1.5112,154.97,154.94,49.68]
[1749074329982,19.9691711,154.95,154.94,68.32964886]
[1749074331392,1.5112,154.97,154.95,18.64964886]
[1749074331594,19.9691711,154.96,154.95,18.79181043]
[1749074331774,19.9691711,154.97,154.95,18.64964886]
[1749074332087,19.9691711,154.96,154.95,18.79181043]
[1749074333899,1.5104,155.02,154.96,0.14216157]
[1749074334075,19.9691711,154.98,154.96,0.28432314]
[1749074335660,1.5104,155.02,154.96,0.28432314]
[1749074335990,19.9691711,154.99,154.96,0.28432314]
[1749074336361,1.5104,155.02,154.96,0.28432314]
[1749074336581,19.9691711,154.99,154.96,0.28432314]
[1749074336780,19.9691711,155.0,154.99,18.933972]
[1749074336961,19.9691711,155.0,154.99,68.593972]
[1749074337164,19.9691711,155.01,154.99,68.593972]
[1749074337580,1.6434,155.06,154.99,68.593972]
[1749074337901,19.9691711,155.01,154.99,68.593972]
[1749074338278,19.9691711,155.02,155.01,0.14216157]
[1749074339000,19.9691711,155.03,155.01,18.933972]
[1749074340976,19.9691711,155.02,155.01,18.79181043]
[1749074341464,19.9691711,155.02,155.0,37.1]
[1749074341668,19.9691711,155.01,155.0,37.1]
[1749074341900,28.2054711,155.01,155.0,76.54]
[1749074342459,28.2054711,155.01,154.99,10.22]
[1749074342460,54.2054711,155.01,154.92,0.14216157]
[1749074342683,19.9691711,154.93,154.92,0.14216157]
[1749074342868,19.9691711,154.93,154.92,58.23181043]
[1749074343065,19.9691711,154.94,154.93,0.14216157]
[1749074344083,19.9691711,154.94,154.93,10.36216157]
[1749074344979,8.2363,155.01,154.94,18.64964886]
[1749074345160,19.9691711,154.95,154.94,18.64964886]
[1749074346691,19.9691711,154.95,154.93,10.22]
[1749074346873,21.6261711,154.94,154.93,10.22]
[1749074347393,27.9718711,154.94,154.93,10.22]
[1749074347604,27.9718711,154.94,154.82,0.14216157]
[1749074347780,27.9718711,154.94,154.8,33.2355734]
[1749074347781,19.9691711,154.84,154.8,33.2355734]
[1749074348105,19.9691711,154.83,154.81,0.14216157]
[1749074348400,27.6659,154.91,154.83,19.21829514]
[1749074348572,19.9691711,154.89,154.86,0.28432314]
[1749074348770,19.9691711,154.89,154.88,18.79181043]
[1749074348991,1.6659,154.91,154.88,18.79181043]
[1749074349295,19.9691711,154.89,154.88,18.79181043]
[1749074351275,19.9691711,154.89,154.88,18.64964886]
[1749074352680,19.9691711,154.89,154.86,0.14216157]
[1749074352982,19.9691711,154.87,154.86,0.14216157]
[1749074353186,19.9691711,154.87,154.86,58.373972]
[1749074353979,19.9691711,154.87,154.86,58.08964886]
[1749074354197,19.9691711,154.87,154.86,68.30964886]
[1749074354401,19.9691711,154.87,154.86,28.86964886]
[1749074354775,19.9691711,154.87,154.86,10.22]
[1749074354978,19.9691711,154.87,154.86,49.66]
[1749074357405,19.9691711,154.87,154.86,49.68]
[1749074357977,26.5007711,154.87,154.86,10.22]
[1749074358203,26.5007711,154.87,154.86,49.68]
[1749074358706,26.5007711,154.87,154.86,10.22]
[1749074358917,26.5007711,154.87,154.86,49.68]
[1749074359901,26.5007711,154.87,154.86,10.22]
[1749074360088,26.5007711,154.87,154.86,49.66]
[1749074361389,26.5007711,154.87,154.86,49.68]
[1749074362280,6.5316,154.87,154.86,49.68]
[1749074362603,26.5007711,154.87,154.86,49.68]
[1749074368910,19.9691711,154.87,154.86,49.68]
[1749074371711,148.1,154.94,154.87,18.64964886]
[1749074371893,148.1,154.94,154.88,39.46]
[1749074372085,19.9691711,154.91,154.88,39.46]
[1749074372589,19.9691711,154.92,154.89,18.79181043]
[1749074372791,19.9691711,154.91,154.9,39.46]
[1749074372994,1.6421,154.95,154.91,18.64964886]
[1749074373183,1.6421,154.95,154.9,68.32964886]
[1749074373184,19.9691711,154.93,154.92,39.46]
[1749074383514,19.9691711,154.94,154.93,18.79181043]
[1749074384925,19.9691711,154.94,154.93,18.64964886]
[1749074385223,19.9691711,154.94,154.93,39.44]
[1749074386529,19.9691711,154.94,154.9,10.22]
[1749074386729,19.9691711,154.91,154.9,10.22]
[1749074387428,19.9691711,154.91,154.9,49.66]
[1749074388024,19.9691711,154.91,154.9,10.22]
[1749074388233,19.9691711,154.91,154.9,49.66]
[1749074395908,19.9691711,154.91,154.9,10.22]
[1749074396135,19.9691711,154.91,154.9,49.66]
[1749074399013,26.0,154.92,154.9,49.66]
[1749074399230,19.9691711,154.91,154.9,49.66]
[1749074400322,26.0,154.92,154.9,49.66]
[1749074400521,19.9691711,154.91,154.9,49.66]
[1749074401810,19.9691711,154.91,154.9,68.30964886]
[1749074402029,19.9691711,154.91,154.9,49.66]
[1749074402336,41.5828422,154.91,154.89,10.22]
[1749074402537,39.9383422,154.9,154.82,18.64964886]
[1749074402722,19.9691711,154.83,154.81,0.14216157]
[1749074402924,19.9691711,154.83,154.82,58.23181043]
[1749074403327,19.9691711,154.83,154.82,58.08964886]
[1749074403524,19.9691711,154.83,154.82,18.64964886]
[1749074403733,19.9691711,154.83,154.82,58.08964886]
[1749074404111,19.9691711,154.83,154.82,68.30964886]
[1749074404727,19.9691711,154.83,154.82,28.86964886]
[1749074405327,19.9691711,154.83,154.82,68.30964886]
[1749074405521,19.9691711,154.83,154.82,10.22]
[1749074406441,19.9691711,154.83,154.82,49.66]
[1749074407132,19.9691711,154.83,154.82,10.22]
[1749074407327,39.9383422,154.83,154.76,18.64964886]
[1749074407536,19.9691711,154.77,154.73,18.79181043]
[1749074407737,19.9691711,154.76,154.73,44.79181043]
[1749074408344,19.9691711,154.77,154.74,0.14216157]
[1749074408519,19.9691711,154.77,154.75,18.64964886]
[1749074408922,1.602,154.85,154.77,18.64964886]
[1749074409120,1.602,154.85,154.8,0.14216157]
[1749074409352,19.9691711,154.83,154.81,39.46]
[1749074409646,19.9691711,154.84,154.82,18.79181043]
[1749074410053,1.5269,154.89,154.82,18.79181043]
[1749074410054,1.5269,154.89,154.83,0.28432314]
[1749074410216,19.9691711,154.86,154.83,0.28432314]
[1749074412533,1.5269,154.89,154.83,0.28432314]
[1749074412861,19.9691711,154.86,154.83,0.28432314]
[1749074413031,1.5735,154.94,154.85,0.28432314]
[1749074413234,19.9691711,154.9,154.88,0.14216157]
[1749074413537,19.9691711,154.91,154.88,0.28432314]
[1749074413741,1.5735,154.94,154.88,0.28432314]
[1749074413742,19.9691711,154.9,154.88,0.28432314]
[1749074414255,1.5735,154.94,154.9,18.64964886]
[1749074414436,19.9691711,154.91,154.9,18.64964886]
[1749074414640,19.9691711,154.91,154.9,58.10964886]
[1749074415349,1.5735,154.94,154.9,58.10964886]
[1749074415651,19.9691711,154.91,154.9,58.10964886]
[1749074416663,19.9691711,154.92,154.9,58.10964886]
[1749074417640,45.9691711,154.96,154.9,58.10964886]
[1749074417840,19.9691711,154.92,154.9,58.10964886]
[1749074418636,19.9691711,154.91,154.9,58.25181043]
[1749074420662,26.0,154.96,154.9,58.25181043]
[1749074420960,19.9691711,154.92,154.9,58.25181043]
[1749074421328,19.9691711,154.91,154.9,58.25181043]
[1749074424842,19.9691711,154.91,154.89,10.22]
[1749074425043,19.9691711,154.9,154.89,10.22]
[1749074425268,19.9691711,154.9,154.89,49.66]
[1749074434862,19.9691711,154.9,154.89,10.22]
[1749074435272,19.9691711,154.9,154.89,49.66]
[1749074435475,39.9383422,154.9,154.89,10.22]
[1749074435682,39.9383422,154.9,154.89,39.44]
[1749074435984,39.9383422,154.9,154.88,10.22]
[1749074436165,39.9383422,154.89,154.87,10.22]
[1749074436476,65.9383422,154.88,154.81,0.14216157]
[1749074436777,19.9691711,154.82,154.77,0.14216157]
[1749074436984,19.9691711,154.8,154.78,39.44]
[1749074437163,19.9691711,154.8,154.77,18.79181043]
[1749074437358,19.9691711,154.8,154.78,39.44]
[1749074437560,19.9691711,154.8,154.79,0.14216157]
[1749074437755,19.9691711,154.8,154.78,39.44]
[1749074437981,19.9691711,154.8,154.79,0.14216157]
[1749074438479,19.9691711,154.8,154.79,39.44]
[1749074438778,19.9691711,154.8,154.79,58.08964886]
[1749074439484,19.9691711,154.81,154.8,18.64964886]
[1749074439795,19.9691711,154.83,154.81,0.14216157]
[1749074439970,19.9691711,154.83,154.82,58.08964886]
[1749074440360,19.9691711,154.83,154.82,39.44]
[1749074441482,19.9691711,154.83,154.77,0.14216157]
[1749074441672,19.9691711,154.83,154.76,18.64964886]
[1749074441673,19.9691711,154.78,154.76,18.64964886]
[1749074441873,19.9691711,154.78,154.77,39.44]
[1749074442070,19.9691711,154.78,154.76,18.64964886]
[1749074442270,19.9691711,154.77,154.73,18.79181043]
[1749074442471,19.9691711,154.8,154.73,18.79181043]
[1749074442472,19.9691711,154.76,154.75,0.14216157]
[1749074442771,19.9691711,154.76,154.73,18.79181043]
[1749074443086,26.0,154.79,154.76,18.64964886]
[1749074444284,26.0,154.79,154.78,18.64964886]
[1749074444483,19.9691711,154.79,154.78,18.64964886]
[1749074444681,27.559,154.81,154.78,18.64964886]
[1749074444891,19.9691711,154.79,154.78,18.64964886]
[1749074445062,19.9691711,154.79,154.78,58.14964886]
[1749074445574,19.9691711,154.83,154.81,0.14216157]
[1749074445777,19.9691711,154.83,154.82,68.42964886]
[1749074445985,1.5108,154.87,154.82,68.42964886]
[1749074446209,19.9691711,154.83,154.82,68.42964886]
[1749074449985,19.9691711,154.84,154.83,18.64964886]
[1749074455222,19.9691711,154.84,154.82,10.22]
[1749074455410,1.5108,154.87,154.83,39.52]
[1749074455711,19.9691711,154.84,154.83,39.52]
[1749074457705,19.9691711,154.84,154.83,58.16964886]
[1749074461491,1.5108,154.87,154.84,18.79181043]
[1749074461687,19.9691711,154.86,154.84,18.79181043]
[1749074461902,19.9691711,154.85,154.84,18.933972]
[1749074462108,19.9691711,154.85,154.84,18.79181043]
[1749074462286,19.9691711,154.85,154.83,39.52]
[1749074462618,19.9691711,154.84,154.83,18.64964886]
[1749074462791,19.9691711,154.84,154.83,39.52]
[1749074463688,19.9691711,154.84,154.82,28.86964886]
[1749074463897,19.9691711,154.83,154.82,10.22]
[1749074464422,1.5606,154.82,154.75,3.21396928]
[1749074464598,19.9691711,154.8,154.76,18.64964886]
[1749074464795,19.9691711,154.77,154.76,18.64964886]
[1749074464983,19.9691711,154.8,154.76,18.64964886]
[1749074465182,19.9691711,154.77,154.76,18.64964886]
[1749074465614,19.9691711,154.77,154.76,58.18964886]
[1749074466619,7.916,154.89,154.81,0.14216157]
[1749074466789,23.32484925,154.92,154.87,20.53781738]
[1749074467113,1.5325,154.98,154.91,0.14216157]
[1749074467323,19.9691711,154.94,154.92,39.82]
[1749074467619,19.9691711,154.93,154.92,58.46964886]
[1749074467911,19.9691711,154.93,154.92,39.82]
[1749074469306,1.5325,154.98,154.93,18.79181043]
[1749074469510,19.9691711,154.97,154.93,18.79181043]
[1749074469703,19.9691711,154.96,154.93,18.79181043]
[1749074469904,4.88265697,155.02,154.93,18.79181043]
[1749074469905,26.0,155.01,154.93,18.79181043]
[1749074470203,19.9691711,154.96,154.93,18.79181043]
[1749074470496,19.9691711,154.94,154.93,18.79181043]
[1749074472920,19.9691711,154.96,154.93,18.79181043]
[1749074473423,0.14216157,155.05,154.93,18.79181043]
[1749074473424,1.5549,155.08,154.98,18.79181043]
[1749074473605,1.5549,155.08,155.0,18.64964886]
[1749074473921,19.9691711,155.01,155.0,18.64964886]
[1749074474220,19.9691711,155.02,155.0,28.90964886]
[1749074474810,1.5549,155.08,155.0,28.90964886]
[1749074474996,19.9691711,155.02,155.0,28.90964886]
[1749074476741,19.9691711,155.02,155.0,54.90964886]
[1749074477429,29.91291212,155.02,155.0,54.90964886]
[1749074478396,1.5549,155.08,155.01,0.28432314]
[1749074478796,29.91291212,155.04,155.01,0.28432314]
[1749074479603,29.91291212,155.03,155.01,0.28432314]
[1749074481037,29.91291212,155.02,155.0,54.90964886]